bitfinex/quotes_ETHUSD_20240614
["timestamp","ask_amount","ask_price","bid_price","bid_amount"]
[1718330810888,0.672,3486.1,3485.3,0.32031979]
[1718330812001,0.55,3486.3,3485.3,0.32031979]
[1718330812183,0.55,3486.4,3485.3,0.99231979]
[1718330812386,0.672,3486.3,3485.4,0.33390994]
[1718330813706,10.8696483,3486.5,3485.5,3.05707956]
[1718330814064,3.672,3486.5,3485.5,2.9997]
[1718330814312,0.672,3486.5,3485.5,2.9997]
[1718330814618,3.0,3486.7,3485.6,0.05737789]
[1718330814771,0.672,3486.5,3485.6,0.05737789]
[1718330814967,0.672,3486.5,3485.7,0.30570779]
[1718330815368,7.1976483,3487.0,3485.9,0.672]
[1718330815571,7.1976483,3487.0,3486.1,2.2595]
[1718330815806,7.8696483,3487.0,3486.1,2.2595]
[1718330816015,0.672,3486.8,3486.1,2.2595]
[1718330816966,7.1976483,3487.0,3486.1,2.2595]
[1718330817208,0.86979382,3486.9,3486.1,2.2595]
[1718330817675,7.1976483,3487.0,3486.1,2.2595]
[1718330818980,1.98344514,3486.9,3485.8,2.386]
[1718330819183,3.48373507,3486.9,3485.8,2.386]
[1718330819595,1.98344514,3486.9,3485.8,2.386]
[1718330820113,3.48373507,3486.9,3485.8,2.386]
[1718330820273,3.99330858,3486.9,3485.8,2.386]
[1718330820472,2.49301865,3486.9,3485.8,2.386]
[1718330821504,7.39460222,3487.3,3486.0,2.4259]
[1718330821505,1.50042428,3487.1,3486.0,2.4259]
[1718330821822,3.0,3487.3,3486.1,0.05736352]
[1718330822373,1.43344514,3487.2,3486.0,2.4259]
[1718330822573,1.612,3486.7,3486.0,2.4259]
[1718330822776,0.1612,3486.6,3486.0,2.4259]
[1718330823093,1.50042428,3487.0,3486.0,2.4259]
[1718330823582,0.55,3486.9,3486.0,2.4259]
[1718330824983,4.50042428,3487.1,3486.0,2.4259]
[1718330825189,3.0,3487.1,3486.0,2.4259]
[1718330825483,3.0,3487.3,3486.2,2.3692]
[1718330825683,1.50042428,3487.7,3486.3,0.0573608]
[1718330825912,1.50042428,3487.7,3486.4,2.3692]
[1718330825913,1.50042428,3487.6,3486.4,2.3692]
[1718330826072,1.50042428,3487.6,3486.5,0.05735801]
[1718330826272,3.86562428,3487.8,3486.7,2.3692]
[1718330826478,2.3652,3487.8,3486.7,2.3692]
[1718330827582,0.55,3487.7,3486.7,2.3692]
[1718330828544,3.55,3487.7,3486.7,2.3692]
[1718330829893,5.05042428,3487.7,3486.7,2.3692]
[1718330830223,0.92887737,3487.6,3486.7,2.3692]
[1718330831520,0.92887737,3487.6,3486.7,2.3412]
[1718330833122,0.92887737,3487.6,3486.7,2.1972]
[1718330833687,0.92887737,3487.6,3486.6,0.2426558]
[1718330833890,0.92887737,3487.6,3486.2,0.05735617]
[1718330834090,0.92887737,3487.6,3486.3,0.18534784]
[1718330835238,4.04130165,3487.6,3486.3,0.12799167]
[1718330835420,5.05042428,3487.5,3486.3,0.12799167]
[1718330835590,5.05042428,3487.5,3485.4,4.612]
[1718330835591,5.21843245,3487.5,3485.4,4.612]
[1718330835796,5.05042428,3487.5,3485.5,1.43344514]
[1718330835988,5.05042428,3487.5,3485.6,2.3249]
[1718330836203,5.05042428,3487.5,3485.8,2.3249]
[1718330836402,5.05042428,3487.5,3485.7,1.43344514]
[1718330836403,5.05042428,3487.5,3486.0,2.3249]
[1718330836691,5.05042428,3487.5,3486.2,2.4107]
[1718330836894,0.66624243,3487.4,3486.3,0.39722201]
[1718330838121,2.16666671,3487.4,3486.3,0.39722201]
[1718330838492,2.0507685,3487.3,3486.2,2.4107]
[1718330838700,1.5007685,3487.2,3486.2,2.4107]
[1718330840409,2.0507685,3487.1,3486.2,2.4107]
[1718330840615,5.0507685,3487.1,3486.2,2.4107]
[1718330840798,1.05066685,3487.0,3486.2,2.4107]
[1718330841139,2.55143535,3487.0,3486.2,2.4107]
[1718330842553,2.55143535,3487.0,3484.9,2.61437532]
[1718330842554,2.55143535,3487.0,3485.7,2.3368]
[1718330842737,2.55143535,3487.0,3484.9,0.60191455]
[1718330842738,1.5007685,3486.7,3484.9,2.3368]
[1718330842943,1.5007685,3486.5,3485.0,2.54053589]
[1718330843122,4.5007685,3486.5,3485.0,1.56185589]
[1718330843457,4.50138653,3486.5,3485.0,1.43344514]
[1718330844355,4.50138316,3486.5,3485.0,1.43344514]
[1718330844519,0.74849431,3486.4,3485.1,0.37702451]
[1718330844715,0.74849431,3486.4,3485.2,2.4797]
[1718330845033,0.74849431,3486.4,3485.3,0.12834573]
[1718330852928,0.672,3486.2,3485.3,0.12834573]
[1718330856084,0.74849431,3486.4,3485.3,0.12834573]
[1718330856296,0.672,3486.2,3485.3,0.12834573]
[1718330856588,0.672,3486.2,3485.3,0.59969482]
[1718330856982,1.50138316,3486.5,3485.4,0.72937554]
[1718330857183,0.672,3486.5,3485.5,2.3503]
[1718330857494,0.88933832,3486.5,3485.5,2.3503]
[1718330857653,0.88933832,3486.5,3485.6,0.12862188]
[1718330859199,0.672,3486.3,3485.6,0.12862188]
[1718330859715,0.672,3486.4,3485.6,0.12862188]
[1718330860265,0.672,3486.2,3485.6,0.12862188]
[1718330860500,0.672,3486.0,3485.6,0.12862188]
[1718330860709,0.672,3486.0,3485.5,2.3503]
[1718330860882,0.672,3486.0,3485.7,0.12863557]
[1718330861095,0.672,3486.0,3485.5,2.3503]
[1718330861300,0.672,3486.0,3485.8,0.12859394]
[1718330861499,0.672,3486.0,3485.5,2.3503]
[1718330863575,8.69903146,3486.5,3485.5,2.3503]
[1718330863778,0.672,3486.1,3485.1,2.3565]
[1718330863991,0.672,3485.9,3485.1,2.3565]
[1718330868510,2.4907,3485.8,3484.3,0.21719234]
[1718330868770,0.672,3485.4,3484.5,2.3747]
[1718330868890,0.49608475,3486.2,3484.9,2.3747]
[1718330868891,3.37417399,3486.2,3484.9,2.3747]
[1718330869091,4.43344514,3486.3,3484.9,2.3747]
[1718330869092,0.672,3485.9,3485.0,0.05738289]
[1718330869323,0.672,3485.9,3484.9,2.3747]
[1718330869478,0.672,3485.9,3484.9,2.82271451]
[1718330870015,0.672,3485.9,3485.0,0.12930521]
[1718330872607,1.37782439,3486.2,3485.0,0.12930521]
[1718330872808,0.672,3485.7,3484.9,2.3747]
[1718330873222,0.672,3485.8,3484.9,2.3747]
[1718330875336,0.78076191,3486.0,3484.9,2.3747]
[1718330875519,0.672,3485.8,3484.9,2.3747]
[1718330877670,4.37782439,3486.1,3484.9,3.0467]
[1718330877837,0.672,3485.9,3484.9,3.0467]
[1718330879224,3.0,3486.1,3484.9,3.0467]
[1718330879535,0.672,3486.0,3485.0,0.05738307]
[1718330879723,1.30942338,3486.0,3484.9,3.0467]
[1718330879925,1.30942338,3486.0,3485.0,0.05738306]
[1718330881048,1.30942338,3486.0,3485.0,0.05738305]
[1718330882169,1.30942338,3486.0,3484.9,3.0467]
[1718330882381,0.58117772,3485.9,3485.0,0.05738304]
[1718330882531,1.25317772,3485.9,3485.0,0.05738304]
[1718330882973,0.672,3485.7,3484.7,2.3113]
[1718330883168,0.672,3485.7,3484.8,0.12939771]
[1718330884566,2.4004,3485.8,3484.7,2.3113]
[1718330884757,0.672,3485.7,3484.8,0.29833]
[1718330885374,1.5023538,3486.0,3484.9,2.3037]
[1718330885572,2.1743538,3485.9,3485.0,0.05738297]
[1718330885938,0.672,3485.9,3485.0,0.05738297]
[1718330886395,2.1743538,3485.9,3485.0,0.05738297]
[1718330886947,0.672,3485.9,3485.0,0.05738297]
[1718330887288,2.17617949,3485.9,3485.1,0.12928198]
[1718330887469,3.20566141,3485.9,3485.1,0.12928198]
[1718330887783,3.20566141,3485.9,3485.0,0.05738297]
[1718330888383,1.70148192,3485.9,3485.0,0.05738297]
[1718330888545,3.20630844,3485.9,3485.0,0.05738297]
[1718330888945,1.50482652,3485.8,3485.0,0.05738297]
[1718330889249,1.50482652,3485.8,3485.0,0.39052427]
[1718330889450,3.20630844,3485.9,3485.0,0.39052427]
[1718330889953,3.20630844,3485.9,3485.8,0.144]
[1718330891591,1.70148192,3485.9,3485.8,0.144]
[1718330891787,3.20636433,3485.9,3485.8,0.144]
[1718330892150,1.70148192,3485.9,3485.8,0.144]
[1718330893679,1.00148192,3485.9,3485.8,0.144]
[1718330893916,1.67348192,3485.9,3485.8,0.144]
[1718330894117,1.50491447,3485.9,3485.8,0.144]
[1718330894333,2.17691447,3486.0,3485.8,0.144]
[1718330896143,1.50491447,3485.9,3485.8,0.144]
[1718330897920,0.672,3486.0,3485.8,0.144]
[1718330898117,1.50498721,3485.9,3485.8,0.144]
[1718330899316,0.672,3486.0,3485.8,0.144]
[1718330899628,1.43344514,3485.9,3485.8,0.144]
[1718330899781,3.75644514,3485.9,3485.8,0.144]
[1718330900137,6.94029456,3485.9,3485.8,0.144]
[1718330900288,3.75644514,3485.9,3485.8,0.144]
[1718330900487,4.42844514,3485.9,3485.8,0.144]
[1718330900721,5.28279659,3485.9,3485.8,0.144]
[1718330903732,6.66066136,3485.9,3485.8,0.144]
[1718330904323,5.28279659,3485.9,3485.8,0.144]
[1718330904625,6.66066136,3485.9,3485.8,0.144]
[1718330904829,6.66079559,3485.9,3485.8,0.144]
[1718330906703,5.28279659,3485.9,3485.8,0.144]
[1718330907328,7.08950464,3485.9,3485.8,0.144]
[1718330908236,5.28279659,3485.9,3485.8,0.144]
[1718330908533,7.08951988,3485.9,3485.8,0.144]
[1718330909704,7.08952633,3485.9,3485.8,0.144]
[1718330911039,7.08950025,3485.9,3485.8,0.144]
[1718330912239,6.66076809,3485.9,3485.8,0.144]
[1718330915717,7.61079659,3485.9,3485.8,0.144]
[1718330915935,8.10686995,3485.9,3485.8,0.144]
[1718330916135,8.77886995,3485.9,3485.8,0.144]
[1718330917315,10.88669089,3485.9,3485.8,0.144]
[1718330917516,10.21469089,3485.9,3485.8,0.144]
[1718330917726,10.88669089,3485.9,3485.8,0.144]
[1718330922655,8.77886995,3485.9,3485.8,0.144]
[1718330939564,10.88464982,3485.9,3485.8,0.144]
[1718330939871,10.21264982,3485.9,3485.8,0.144]
[1718330940029,6.45586995,3485.9,3485.8,0.144]
[1718330940230,5.28779659,3485.9,3485.8,0.144]
[1718330940565,7.76489705,3485.9,3485.8,0.144]
[1718330940944,8.26097041,3485.9,3485.8,0.144]
[1718330941157,6.73461896,3485.9,3485.8,0.144]
[1718330941326,1.87409357,3486.1,3485.8,2.4094]
[1718330941533,9.30342817,3486.5,3485.8,2.4094]
[1718330941534,1.5042752,3486.0,3485.8,2.4094]
[1718330941741,2.1762752,3486.1,3485.8,2.4094]
[1718330941939,0.672,3485.9,3485.8,2.4094]
[1718330942141,0.672,3485.9,3485.8,0.144]
[1718330942436,3.9105456,3485.9,3485.8,0.144]
[1718330943533,2.10544514,3485.9,3485.8,0.144]
[1718330944031,3.91087473,3485.9,3485.8,0.144]
[1718330944668,2.10544514,3485.9,3485.8,0.144]
[1718330945332,2.87617498,3485.9,3485.8,0.144]
[1718330945632,5.87617498,3485.9,3485.8,0.144]
[1718330945970,6.37224834,3485.9,3485.8,0.144]
[1718330946266,8.47802821,3485.9,3485.8,0.144]
[1718330947104,6.37224834,3485.9,3485.8,0.144]
[1718330947518,4.9295185,3485.9,3485.8,0.144]
[1718330947725,5.6015185,3485.9,3485.8,0.144]
[1718330947871,6.91129565,3485.9,3485.8,0.144]
[1718330948882,1.80585051,3485.9,3485.8,0.144]
[1718330949087,1.5047547,3485.9,3485.8,0.144]
[1718330949270,3.672,3486.1,3485.8,0.144]
[1718330949271,1.5047547,3486.0,3485.8,0.144]
[1718330949472,3.672,3486.1,3485.8,0.39952]
[1718330949473,1.5047547,3485.9,3485.8,0.39952]
[1718330950006,1.5047547,3485.9,3485.8,0.144]
[1718330950672,0.672,3486.1,3485.8,0.144]
[1718330950874,1.50445958,3485.9,3485.8,0.144]
[1718330952086,3.672,3486.1,3485.8,0.144]
[1718330952419,1.50427379,3485.9,3485.8,0.144]
[1718330952987,0.672,3486.0,3485.8,0.144]
[1718330953390,4.80585051,3486.3,3485.8,0.39952]
[1718330953618,0.672,3486.2,3485.8,0.39952]
[1718330956033,4.80585051,3486.4,3485.8,0.39952]
[1718330956219,0.672,3486.2,3485.8,0.39952]
[1718330956412,0.672,3486.2,3485.9,0.281072]
[1718330956621,3.0,3486.4,3485.9,0.281072]
[1718330956828,0.672,3486.3,3485.9,2.4157]
[1718330958240,7.1976483,3486.5,3485.9,2.4157]
[1718330958451,0.672,3486.3,3485.9,2.4157]
[1718330959748,7.1976483,3486.5,3485.9,2.4157]
[1718330959955,0.672,3486.4,3485.9,2.4157]
[1718330960112,0.672,3486.4,3486.0,0.25597]
[1718330960315,7.1976483,3486.5,3486.0,0.25597]
[1718330961246,0.672,3486.4,3486.0,0.25597]
[1718330964170,3.0,3486.8,3486.0,0.25597]
[1718330964334,0.672,3486.4,3486.0,0.25597]
[1718330964537,0.672,3486.4,3486.1,0.281567]
[1718330964736,4.43344514,3486.8,3486.1,0.281567]
[1718330964936,0.672,3486.5,3485.9,2.4157]
[1718330971079,0.672,3486.3,3485.9,2.4157]
[1718330971607,0.672,3486.3,3485.8,0.144]
[1718330971787,2.3953,3486.7,3485.8,0.144]
[1718330971788,0.672,3486.1,3485.8,0.144]
[1718330972002,0.672,3485.9,3485.8,0.144]
[1718330972362,1.43344514,3486.1,3485.8,0.144]
[1718330972562,0.672,3485.9,3485.8,0.144]
[1718330974731,3.0,3486.2,3485.8,0.144]
[1718330974870,0.672,3486.1,3485.8,0.144]
[1718330975379,0.672,3485.9,3485.8,0.144]
[1718330978242,0.672,3486.1,3485.8,0.144]
[1718330981556,0.672,3485.9,3485.8,0.144]
[1718330981762,0.88254451,3485.9,3485.8,0.144]
[1718330982255,0.672,3485.9,3485.8,0.144]
[1718330992064,7.20927433,3486.1,3485.8,0.144]
[1718330992281,0.672,3485.9,3485.8,0.144]
[1718330994956,1.43344514,3486.0,3485.8,0.144]
[1718330995362,0.672,3485.9,3485.8,0.144]
[1718330995553,1.43344514,3486.0,3485.8,0.144]
[1718330995736,0.672,3485.9,3485.8,0.144]
[1718330996245,1.43344514,3486.0,3485.8,0.144]
[1718330996685,0.672,3485.9,3485.8,0.144]
[1718330999255,1.60368446,3485.9,3485.8,0.144]
[1718331001148,0.93168446,3485.9,3485.8,0.144]
[1718331001491,3.0371296,3485.9,3485.8,0.144]
[1718331001644,6.0371296,3485.9,3485.8,0.144]
[1718331001845,6.53322496,3485.9,3485.8,0.144]
[1718331002650,6.53322649,3485.9,3485.8,0.144]
[1718331003605,8.33732594,3485.9,3485.8,0.144]
[1718331004087,8.33733721,3485.9,3485.8,0.144]
[1718331006966,7.66533721,3485.9,3485.8,0.144]
[1718331007171,7.16922905,3485.9,3485.8,0.144]
[1718331007366,6.0371296,3485.9,3485.8,0.144]
[1718331007566,6.53323776,3485.9,3485.8,0.144]
[1718331008377,5.86123776,3485.9,3485.8,0.144]
[1718331008590,0.49610816,3485.9,3485.8,0.144]
[1718331008888,1.80362317,3486.0,3485.8,0.144]
[1718331008889,0.672,3486.0,3485.8,0.144]
[1718331009299,5.29973133,3486.3,3485.8,0.144]
[1718331009595,0.672,3486.0,3485.8,0.144]
[1718331010858,6.23706831,3486.2,3485.8,0.144]
[1718331011058,0.672,3486.0,3485.8,0.144]
[1718331011260,4.43344514,3486.2,3485.8,0.144]
[1718331011460,0.672,3486.0,3485.8,0.144]
[1718331012587,2.29973133,3486.3,3485.8,0.144]
[1718331012757,0.672,3486.2,3485.8,0.144]
[1718331013168,6.73317647,3486.4,3485.8,0.144]
[1718331013369,0.672,3486.2,3485.8,0.144]
[1718331013683,6.73317647,3486.4,3485.8,0.144]
[1718331014227,0.672,3486.2,3485.8,0.144]
[1718331014598,5.29973133,3486.4,3485.9,2.4793]
[1718331014784,5.97173133,3486.4,3485.9,2.4793]
[1718331014989,2.29973133,3486.4,3485.9,2.74163]
[1718331015195,1.80362317,3486.4,3485.9,2.74163]
[1718331015414,7.1976483,3486.5,3485.9,2.74163]
[1718331015727,9.00127147,3486.8,3485.9,2.74163]
[1718331015904,7.1976483,3486.8,3486.1,2.4801]
[1718331016229,7.1976483,3486.8,3486.1,3.1521]
[1718331016507,7.1976483,3486.8,3486.2,2.60897012]
[1718331017724,7.1976483,3486.8,3486.3,0.05736498]
[1718331018021,7.1976483,3486.8,3486.4,2.81393351]
[1718331018431,7.1976483,3486.8,3486.5,0.12814123]
[1718331018576,7.1976483,3486.8,3486.6,2.2905]
[1718331018779,0.672,3487.0,3486.6,2.41859961]
[1718331018975,0.672,3487.0,3486.6,2.2905]
[1718331019461,7.1976483,3487.4,3486.6,2.2905]
[1718331019640,0.672,3487.2,3486.6,2.2905]
[1718331019939,7.1976483,3487.4,3486.7,0.26243335]
[1718331020110,0.672,3487.2,3486.7,0.26243335]
[1718331020437,0.672,3487.3,3486.7,0.26243335]
[1718331021323,0.672,3487.3,3486.8,2.4966]
[1718331021509,7.1976483,3487.4,3486.8,2.4966]
[1718331021713,7.1976483,3487.4,3487.0,2.4966]
[1718331023117,7.1976483,3487.4,3486.7,2.4095]
[1718331023311,0.672,3487.3,3486.7,2.4095]
[1718331023529,0.672,3487.3,3486.8,0.12744019]
[1718331023711,0.672,3487.3,3486.7,2.4095]
[1718331024069,7.1976483,3487.4,3486.8,0.12744019]
[1718331024257,0.672,3487.3,3486.8,0.12744019]
[1718331024546,0.672,3487.3,3486.9,0.12749536]
[1718331024749,0.672,3487.3,3486.7,2.4095]
[1718331024907,0.672,3487.3,3487.0,0.12745375]
[1718331025116,2.4922,3487.6,3486.7,2.4095]
[1718331025317,0.672,3487.2,3486.7,2.4095]
[1718331025622,0.672,3487.2,3486.7,2.65045]
[1718331026034,0.672,3487.2,3486.8,0.12753697]
[1718331026432,0.672,3487.2,3486.7,2.65045]
[1718331026631,0.672,3487.2,3486.9,0.12749536]
[1718331026830,0.672,3487.2,3486.8,0.12753697]
[1718331027052,2.4922,3487.6,3486.7,2.65045]
[1718331027053,2.4922,3487.6,3487.0,0.12745375]
[1718331027255,0.672,3487.0,3486.9,0.12749536]
[1718331027458,0.672,3487.0,3486.7,2.4095]
[1718331027632,0.672,3487.0,3486.9,0.12749536]
[1718331027831,0.672,3487.0,3486.8,0.12753697]
[1718331028061,0.672,3487.0,3486.9,0.12749536]
[1718331028362,0.672,3487.0,3486.7,2.4095]
[1718331028561,0.672,3487.0,3486.9,0.12744006]
[1718331028767,0.672,3487.0,3486.7,2.4095]
[1718331028923,0.672,3487.0,3486.9,0.12744006]
[1718331029248,0.672,3487.0,3485.9,2.4206]
[1718331029470,2.4678,3487.1,3486.9,0.12744006]
[1718331029777,2.4678,3487.1,3486.0,0.25646]
[1718331029778,0.672,3487.0,3485.9,2.4206]
[1718331029985,0.672,3486.6,3485.9,2.4206]
[1718331030288,0.672,3486.4,3485.9,2.4206]
[1718331030583,0.672,3486.2,3485.9,2.4206]
[1718331030779,0.672,3486.4,3485.9,2.4206]
[1718331030986,0.672,3486.5,3485.9,2.4206]
[1718331033382,0.672,3486.3,3485.9,2.4206]
[1718331034792,7.1976483,3486.7,3485.9,2.4206]
[1718331034994,0.672,3486.5,3485.9,2.4206]
[1718331035173,0.672,3486.5,3485.9,2.67706]
[1718331035508,7.1976483,3486.7,3485.9,2.67706]
[1718331035796,0.672,3486.6,3485.9,2.67706]
[1718331036500,7.1976483,3486.7,3486.0,2.384]
[1718331036713,7.8696483,3486.7,3486.0,2.384]
[1718331038129,7.1976483,3486.7,3486.0,2.729646]
[1718331038519,0.672,3486.5,3486.0,2.729646]
[1718331038725,0.672,3486.5,3486.0,2.384]
[1718331044649,7.1976483,3486.7,3486.0,2.384]
[1718331044858,0.672,3486.6,3486.0,2.384]
[1718331045824,7.1976483,3486.7,3486.0,2.384]
[1718331047721,7.1976483,3486.7,3486.1,0.05736633]
[1718331047922,7.1976483,3486.7,3486.3,2.3909]
[1718331050049,7.1976483,3486.7,3486.4,0.05736302]
[1718331050226,7.1976483,3486.7,3486.5,2.2542]
[1718331050925,7.1976483,3486.7,3486.5,0.672]
[1718331051143,7.1976483,3486.7,3486.6,2.43]
[1718331051449,7.1976483,3487.5,3486.6,2.7402]
[1718331051627,7.1976483,3487.5,3486.8,2.43]
[1718331051827,7.1976483,3488.2,3487.2,2.3131]
[1718331052033,7.1976483,3488.2,3487.4,2.3131]
[1718331052230,7.1976483,3488.2,3487.5,0.05734347]
[1718331052445,7.8696483,3488.2,3487.5,0.21421647]
[1718331053214,7.1976483,3488.2,3487.5,0.21421647]
[1718331053458,7.1976483,3488.2,3487.6,0.34517714]
[1718331054152,0.672,3488.1,3487.6,0.34517714]
[1718331054359,0.672,3488.1,3487.4,2.3131]
[1718331055058,7.1976483,3488.2,3487.4,2.3131]
[1718331055059,0.672,3487.7,3487.4,2.3131]
[1718331055235,7.1976483,3488.2,3487.4,2.3131]
[1718331055555,0.672,3488.1,3487.4,2.3131]
[1718331055779,7.8696483,3488.2,3487.4,2.3131]
[1718331055972,7.8696483,3488.2,3487.4,2.61161]
[1718331056259,7.8696483,3488.2,3487.5,0.0573435]
[1718331056260,7.1976483,3488.2,3487.5,0.0573435]
[1718331056419,7.1976483,3488.2,3487.6,2.3805]
[1718331056620,7.1976483,3488.2,3487.7,0.05733862]
[1718331056826,7.1976483,3488.2,3487.6,2.3805]
[1718331057048,7.1976483,3488.2,3487.7,0.335101]
[1718331057258,7.1976483,3488.6,3487.7,0.335101]
[1718331057447,7.1976483,3488.6,3487.6,2.3805]
[1718331057448,0.672,3488.5,3487.6,2.3805]
[1718331057649,0.672,3488.3,3487.6,2.3805]
[1718331057869,7.1976483,3488.6,3487.6,2.3805]
[1718331058073,0.672,3488.4,3487.6,2.3805]
[1718331059051,7.1976483,3488.6,3487.6,2.3805]
[1718331059251,0.672,3488.4,3487.6,2.3805]
[1718331059751,9.45541313,3488.6,3487.6,2.3805]
[1718331059952,0.672,3488.5,3487.6,2.3805]
[1718331060286,7.1976483,3488.6,3487.7,2.54783668]
[1718331060489,7.1976483,3488.6,3487.8,0.05733668]
[1718331060790,7.1976483,3488.6,3488.0,2.4905]
[1718331060991,0.672,3488.7,3488.0,2.4905]
[1718331061384,0.672,3488.7,3488.1,0.15552637]
[1718331061684,3.0,3488.9,3488.1,0.21286174]
[1718331061898,3.672,3488.9,3488.1,0.37030791]
[1718331062075,0.672,3488.9,3488.3,2.4905]
[1718331064390,0.672,3488.7,3488.3,2.4905]
[1718331065004,0.672,3488.7,3488.4,0.15539911]
[1718331065157,0.72616281,3488.9,3488.4,0.15539911]
[1718331065356,0.672,3488.8,3488.3,2.4905]
[1718331066281,7.2616281,3489.0,3488.3,2.4905]
[1718331066502,0.672,3488.8,3488.3,2.4905]
[1718331067403,0.672,3488.6,3486.8,2.2625]
[1718331067605,0.672,3488.6,3487.7,2.2625]
[1718331067836,0.672,3488.7,3487.7,2.2625]
[1718331068038,0.672,3488.7,3487.8,0.15539575]
[1718331068340,2.4678,3488.9,3487.7,2.2625]
[1718331068503,3.1398,3488.9,3487.9,2.2667]
[1718331068845,0.672,3488.7,3487.9,2.2667]
[1718331069044,0.672,3488.7,3487.9,2.56057]
[1718331069218,0.672,3488.7,3488.0,0.1553109]
[1718331070607,8.28779091,3489.0,3488.1,2.4314]
[1718331070804,7.2616281,3489.0,3488.1,2.4314]
[1718331071232,0.672,3488.8,3488.1,2.4314]
[1718331072519,7.2616281,3489.0,3488.4,2.4314]
[1718331072715,0.0639798,3489.0,3488.4,2.4314]
[1718331074109,0.0639798,3489.0,3487.9,0.29387]
[1718331074110,0.0639798,3489.0,3488.6,2.3213]
[1718331074332,0.0639798,3489.0,3488.9,2.3213]
[1718331074653,0.0639798,3489.0,3488.9,4.45947167]
[1718331074950,7.1976483,3490.2,3489.0,2.3213]
[1718331075110,7.1976483,3490.2,3489.8,2.3213]
[1718331075306,7.1976483,3490.7,3489.8,2.3213]
[1718331075536,0.672,3490.5,3489.8,2.3213]
[1718331076260,0.672,3490.5,3489.4,2.2702]
[1718331076563,0.672,3490.5,3488.9,0.55]
[1718331076564,7.8696483,3490.7,3489.9,2.2702]
[1718331076911,7.1976483,3490.7,3489.9,2.2702]
[1718331077341,7.1976483,3490.7,3490.0,0.05729981]
[1718331077509,7.1976483,3490.7,3490.1,0.23274998]
[1718331077719,7.1976483,3490.7,3490.2,0.05729683]
[1718331077921,7.1976483,3490.7,3490.1,0.38566982]
[1718331078250,7.0536483,3490.7,3490.2,0.15287746]
[1718331078556,7.0536483,3490.7,3489.9,2.2702]
[1718331078929,7.0536483,3490.7,3490.0,0.15296221]
[1718331079119,7.75901313,3490.7,3490.0,0.15296221]
[1718331079459,7.75901313,3490.7,3489.6,2.4664]
[1718331079752,7.75901313,3490.7,3489.7,0.15308936]
[1718331083965,1.43344514,3490.6,3489.7,0.15308936]
[1718331084121,1.609,3490.4,3488.7,2.2743]
[1718331084462,1.609,3490.4,3488.0,1.609]
[1718331084463,1.609,3489.6,3488.8,0.14323001]
[1718331084620,3.04244514,3489.6,3488.8,0.14323001]
[1718331084817,3.30424451,3489.5,3488.0,2.2743]
[1718331085218,3.30424451,3489.5,3488.1,0.14352666]
[1718331086049,1.43344514,3489.4,3488.1,0.14352666]
[1718331086841,1.43344514,3489.4,3488.0,2.2743]
[1718331087676,2.3413,3489.3,3487.4,2.3939]
[1718331087980,2.3413,3489.3,3487.5,1.67283514]
[1718331087981,1.43344514,3489.2,3487.5,1.67283514]
[1718331088130,4.43344514,3489.2,3487.6,0.14433072]
[1718331088341,1.609,3489.0,3487.6,0.14433072]
[1718331088550,3.04244514,3489.0,3487.4,2.3939]
[1718331088836,3.04244514,3489.0,3487.4,2.63329]
[1718331088837,3.60424451,3488.9,3487.4,2.63329]
[1718331089342,3.60424451,3488.9,3487.5,0.14443283]
[1718331091099,3.0,3488.8,3487.5,0.14443283]
[1718331091437,0.60424451,3488.9,3487.5,0.14443283]
[1718331091878,0.60424451,3488.9,3487.4,2.63329]
[1718331092086,1.3700338,3488.8,3487.5,0.263329]
[1718331092438,1.3700338,3488.8,3487.6,0.14439039]
[1718331092754,1.3700338,3488.8,3487.5,0.263329]
[1718331092958,1.3700338,3488.8,3487.6,0.14439039]
[1718331093287,1.3700338,3488.8,3487.5,0.263329]
[1718331093469,0.64077235,3488.7,3487.6,0.2657229]
[1718331093643,0.64077235,3488.7,3487.6,0.41011329]
[1718331093843,0.64077235,3488.7,3487.6,0.2657229]
[1718331095146,0.50108062,3488.6,3487.6,0.2657229]
[1718331096685,4.37242576,3488.6,3487.4,2.3939]
[1718331096852,4.37242576,3488.6,3486.6,2.2551]
[1718331097177,4.37242576,3488.6,3486.7,1.57904358]
[1718331097178,3.0,3488.5,3486.7,1.57904358]
[1718331097389,3.0,3488.5,3486.8,0.68341436]
[1718331097390,1.609,3488.3,3486.8,0.68341436]
[1718331097543,4.609,3488.3,3486.8,2.1168595]
[1718331097743,4.609,3488.3,3486.9,0.14551353]
[1718331098762,3.0,3488.3,3486.9,0.14551353]
[1718331098946,0.89814258,3488.4,3486.9,0.14551353]
[1718331099151,4.43344514,3488.5,3486.9,0.14551353]
[1718331099152,0.82705683,3488.3,3487.0,0.2262373]
[1718331099347,0.82705683,3488.3,3487.1,0.14542863]
[1718331101376,0.82705683,3488.3,3487.0,0.2262373]
[1718331104785,2.2833,3488.2,3487.0,0.2262373]
[1718331104990,5.2833,3488.2,3487.0,0.2262373]
[1718331105157,0.61103568,3488.1,3487.0,0.2262373]
[1718331106184,0.61103568,3488.1,3487.1,2.3996]
[1718331106385,5.2833,3488.2,3487.2,0.14538618]
[1718331108073,3.0,3488.2,3487.2,0.14538618]
[1718331108406,0.82705683,3488.3,3487.2,0.14538618]
[1718331109000,0.82705683,3488.3,3487.1,2.3996]
[1718331118018,4.92920531,3488.5,3487.3,2.277]
[1718331118019,3.49576017,3488.5,3487.3,2.277]
[1718331118217,3.49573641,3488.5,3487.4,2.38524161]
[1718331119526,3.49573497,3488.5,3487.4,2.38524161]
[1718331120108,3.0,3488.5,3487.4,2.38524161]
[1718331120315,4.55120558,3488.5,3487.4,2.62376577]